[Event "Titled Tuesday Blitz June 6 Late 2023"]
[White "Rodriguez Polo, Mateo"]
[Black "Cilek, Bora"]
[WhiteFideId "24509396"]
[BlackFideId "34502165"]
[WhiteElo "2117"]
[BlackElo "2108"]
[Result "0-1"]
[Round "1"]
[TimeControl "180+2"]
[Date "2023.06.07"]
[WhiteClock "0:00:18"]
[BlackClock "0:00:42"]
[Board "143"]

1. e4 {[%clk 0:02:59]}  c5 {[%clk 0:03:00]} 2. Nf3 {[%clk 0:02:58]}  g6 {[%clk 0:02:59]} 3. c4 {[%clk 0:02:55]}  Nc6 {[%clk 0:02:56]} 4. d4 {[%clk 0:02:47]}  cxd4 {[%clk 0:02:56]} 5. Nxd4 {[%clk 0:02:47]}  Nf6 {[%clk 0:02:55]} 6. Nc3 {[%clk 0:02:45]}  d6 {[%clk 0:02:55]} 7. Be2 {[%clk 0:02:44]}  Nxd4 {[%clk 0:02:52]} 8. Qxd4 {[%clk 0:02:45]}  Bg7 {[%clk 0:02:53]} 9. Be3 {[%clk 0:02:44]}  O-O {[%clk 0:02:52]} 10. Qd2 {[%clk 0:02:29]}  a5 {[%clk 0:02:50]} 11. Rd1 {[%clk 0:02:22]}  a4 {[%clk 0:02:46]} 12. c5 {[%clk 0:02:20]}  Qa5 {[%clk 0:02:45]} 13. cxd6 {[%clk 0:02:18]}  exd6 {[%clk 0:02:45]} 14. O-O {[%clk 0:02:16]}  Be6 {[%clk 0:02:41]} 15. f3 {[%clk 0:01:25]}  a3 {[%clk 0:02:38]} 16. b3 {[%clk 0:01:24]}  Rfc8 {[%clk 0:02:36]} 17. Nb5 {[%clk 0:01:18]}  Qxd2 {[%clk 0:02:29]} 18. Rxd2 {[%clk 0:01:19]}  d5 {[%clk 0:02:28]} 19. Nd6 {[%clk 0:01:12]}  Rc6 {[%clk 0:02:21]} 20. Nxb7 {[%clk 0:01:08]}  dxe4 {[%clk 0:02:18]} 21. Nd8 {[%clk 0:01:04]}  Rc3 {[%clk 0:02:04]} 22. Bd4 {[%clk 0:01:03]}  exf3 {[%clk 0:00:55]} 23. Bxc3 {[%clk 0:00:48]}  fxe2 {[%clk 0:00:55]} 24. Re1 {[%clk 0:00:34]}  Ne4 {[%clk 0:00:55]} 25. Bxg7 {[%clk 0:00:27]}  Nxd2 {[%clk 0:00:54]} 26. Nxe6 {[%clk 0:00:28]}  fxe6 {[%clk 0:00:53]} 27. Rxe2 {[%clk 0:00:28]}  Nxb3 {[%clk 0:00:52]} 28. axb3 {[%clk 0:00:23]}  Kxg7 {[%clk 0:00:52]} 29. Ra2 {[%clk 0:00:21]}  Kf6 {[%clk 0:00:52]} 30. Kf2 {[%clk 0:00:21]}  Ke5 {[%clk 0:00:53]} 31. Ke3 {[%clk 0:00:22]}  Kd5 {[%clk 0:00:53]} 32. Kd3 {[%clk 0:00:21]}  e5 {[%clk 0:00:53]} 33. Kc3 {[%clk 0:00:19]}  Ke4 {[%clk 0:00:46]} 34. b4 {[%clk 0:00:18]}  Ke3 {[%clk 0:00:46]} 35. Kb3 {[%clk 0:00:18]}  e4 {[%clk 0:00:45]} 36. b5 {[%clk 0:00:17]}  Kd3 {[%clk 0:00:44]} 37. Rxa3 {[%clk 0:00:16]}  Rxa3+ {[%clk 0:00:39]} 38. Kxa3 {[%clk 0:00:17]}  e3 {[%clk 0:00:40]} 39. b6 {[%clk 0:00:17]}  e2 {[%clk 0:00:41]} 40. b7 {[%clk 0:00:18]}  e1=Q {[%clk 0:00:42]} 41. b8=Q {[%clk 0:00:18]}  Qa1+ {[%clk 0:00:42]} 0-1


[Site "https://www.chess.com"]

[Event "Titled Tuesday Blitz June 6 Late 2023"]
[White "mohsengabr2002"]
[Black "Aldokhin, Ivan"]
[BlackFideId "24115720"]
[WhiteElo "2256"]
[BlackElo "2322"]
[Result "0-1"]
[Round "1"]
[TimeControl "180+2"]
[Date "2023.06.07"]
[WhiteClock "0:00:46"]
[BlackClock "0:00:31"]
[Board "147"]

1. e4 {[%clk 0:02:59]}  c5 {[%clk 0:02:43]} 2. d3 {[%clk 0:02:58]}  e6 {[%clk 0:02:43]} 3. Nd2 {[%clk 0:02:56]}  Nc6 {[%clk 0:02:44]} 4. Ngf3 {[%clk 0:02:56]}  d6 {[%clk 0:02:40]} 5. g3 {[%clk 0:02:56]}  g6 {[%clk 0:02:40]} 6. Bg2 {[%clk 0:02:57]}  Bg7 {[%clk 0:02:40]} 7. O-O {[%clk 0:02:58]}  Nge7 {[%clk 0:02:39]} 8. c3 {[%clk 0:02:58]}  O-O {[%clk 0:02:36]} 9. Qe2 {[%clk 0:02:59]}  b5 {[%clk 0:02:34]} 10. Rd1 {[%clk 0:02:57]}  b4 {[%clk 0:02:34]} 11. c4 {[%clk 0:02:53]}  a5 {[%clk 0:02:33]} 12. a4 {[%clk 0:02:52]}  bxa3 {[%clk 0:02:26]} 13. Rxa3 {[%clk 0:02:52]}  Nb4 {[%clk 0:02:26]} 14. b3 {[%clk 0:02:50]}  Nec6 {[%clk 0:02:24]} 15. Nf1 {[%clk 0:02:46]}  Qf6 {[%clk 0:02:15]} 16. Ne3 {[%clk 0:02:31]}  Bd7 {[%clk 0:02:03]} 17. Nc2 {[%clk 0:02:23]}  Qc3 {[%clk 0:01:50]} 18. Nxb4 {[%clk 0:02:20]}  axb4 {[%clk 0:01:49]} 19. Rxa8 {[%clk 0:02:18]}  Rxa8 {[%clk 0:01:49]} 20. e5 {[%clk 0:01:58]}  dxe5 {[%clk 0:01:25]} 21. Bb2 {[%clk 0:01:54]}  Qxb3 {[%clk 0:00:57]} 22. Nxe5 {[%clk 0:01:50]}  Bxe5 {[%clk 0:00:56]} 23. Bxe5 {[%clk 0:01:50]}  Ra2 {[%clk 0:00:55]} 24. Qe1 {[%clk 0:01:24]}  Nxe5 {[%clk 0:00:53]} 25. Rb1 {[%clk 0:01:24]}  Nxd3 {[%clk 0:00:41]} 26. Qf1 {[%clk 0:01:12]}  Qc2 {[%clk 0:00:41]} 27. Be4 {[%clk 0:01:10]}  Qxf2+ {[%clk 0:00:40]} 28. Qxf2 {[%clk 0:01:00]}  Nxf2 {[%clk 0:00:40]} 29. Bg2 {[%clk 0:00:56]}  Ba4 {[%clk 0:00:38]} 30. h4 {[%clk 0:00:53]}  Bc2 {[%clk 0:00:36]} 31. Rf1 {[%clk 0:00:52]}  Ne4 {[%clk 0:00:35]} 32. Kh2 {[%clk 0:00:51]}  b3 {[%clk 0:00:33]} 33. Kh3 {[%clk 0:00:49]}  b2 {[%clk 0:00:33]} 34. Re1 {[%clk 0:00:46]}  b1=Q {[%clk 0:00:31]} 0-1


[Site "https://www.chess.com"]

[Event "Titled Tuesday Blitz June 6 Late 2023"]
[White "Wang, Alexander J"]
[Black "Fiorito, Francisco"]
[WhiteFideId "30955270"]
[BlackFideId "180165"]
[WhiteElo "2245"]
[BlackElo "2319"]
[Result "1-0"]
[Round "1"]
[TimeControl "180+2"]
[Date "2023.06.07"]
[WhiteClock "0:00:11"]
[BlackClock "0:00:23"]
[Board "149"]

1. e4 {[%clk 0:02:57]}  c5 {[%clk 0:02:59]} 2. Nf3 {[%clk 0:02:56]}  Nc6 {[%clk 0:02:59]} 3. d4 {[%clk 0:02:57]}  cxd4 {[%clk 0:03:00]} 4. Nxd4 {[%clk 0:02:56]}  g6 {[%clk 0:02:59]} 5. Nc3 {[%clk 0:02:55]}  Bg7 {[%clk 0:02:56]} 6. Be3 {[%clk 0:02:54]}  Nf6 {[%clk 0:02:48]} 7. Bc4 {[%clk 0:02:52]}  O-O {[%clk 0:02:47]} 8. Bb3 {[%clk 0:02:49]}  Re8 {[%clk 0:02:46]} 9. f3 {[%clk 0:02:43]}  e6 {[%clk 0:02:46]} 10. Qd2 {[%clk 0:02:42]}  d5 {[%clk 0:02:46]} 11. O-O-O {[%clk 0:02:34]}  Nxd4 {[%clk 0:02:23]} 12. Bxd4 {[%clk 0:02:34]}  e5 {[%clk 0:02:24]} 13. Bf2 {[%clk 0:01:55]}  d4 {[%clk 0:02:23]} 14. Nd5 {[%clk 0:01:52]}  Be6 {[%clk 0:02:18]} 15. Bh4 {[%clk 0:01:32]}  Bxd5 {[%clk 0:01:58]} 16. Bxd5 {[%clk 0:01:18]}  Qb6 {[%clk 0:01:50]} 17. Bxf6 {[%clk 0:01:13]}  Bxf6 {[%clk 0:01:48]} 18. Kb1 {[%clk 0:01:12]}  Rac8 {[%clk 0:01:46]} 19. Qd3 {[%clk 0:01:06]}  Rc3 {[%clk 0:01:44]} 20. Qd2 {[%clk 0:00:53]}  Rec8 {[%clk 0:01:43]} 21. Rc1 {[%clk 0:00:48]}  Be7 {[%clk 0:01:42]} 22. Ka1 {[%clk 0:00:46]}  Bb4 {[%clk 0:01:41]} 23. Qe2 {[%clk 0:00:41]}  a5 {[%clk 0:01:39]} 24. Bb3 {[%clk 0:00:15]}  a4 {[%clk 0:01:36]} 25. Bxa4 {[%clk 0:00:15]}  Ra8 {[%clk 0:01:33]} 26. Bb3 {[%clk 0:00:14]}  Qa5 {[%clk 0:00:53]} 27. a4 {[%clk 0:00:13]}  Rc7 {[%clk 0:00:49]} 28. Kb1 {[%clk 0:00:13]}  Rc5 {[%clk 0:00:46]} 29. f4 {[%clk 0:00:12]}  b5 {[%clk 0:00:45]} 30. fxe5 {[%clk 0:00:09]}  bxa4 {[%clk 0:00:44]} 31. Ba2 {[%clk 0:00:10]}  a3 {[%clk 0:00:42]} 32. Qf3 {[%clk 0:00:11]}  Ra7 {[%clk 0:00:41]} 33. Rhf1 {[%clk 0:00:10]}  Qc7 {[%clk 0:00:39]} 34. e6 {[%clk 0:00:11]}  Qe5 {[%clk 0:00:25]} 35. exf7+ {[%clk 0:00:10]}  Kf8 {[%clk 0:00:25]} 36. Qh3 {[%clk 0:00:10]}  axb2 {[%clk 0:00:24]} 37. Qh6+ {[%clk 0:00:10]}  Qg7 {[%clk 0:00:22]} 38. Qxg7+ {[%clk 0:00:10]}  Kxg7 {[%clk 0:00:23]} 39. f8=Q# {[%clk 0:00:11]} 1-0


[Site "https://www.chess.com"]

[Event "Titled Tuesday Blitz June 6 Late 2023"]
[White "ArtemDyachuk"]
[Black "Harish, Neeraj"]
[BlackFideId "30958130"]
[WhiteElo "2567"]
[BlackElo "1879"]
[Result "1-0"]
[Round "1"]
[TimeControl "180+2"]
[Date "2023.06.07"]
[WhiteClock "0:00:36"]
[BlackClock "0:00:01"]
[Board "150"]

1. Nf3 {[%clk 0:02:57]}  d5 {[%clk 0:02:53]} 2. e3 {[%clk 0:02:56]}  Nf6 {[%clk 0:02:53]} 3. c4 {[%clk 0:02:53]}  e6 {[%clk 0:02:52]} 4. b3 {[%clk 0:02:53]}  Be7 {[%clk 0:02:52]} 5. Bb2 {[%clk 0:02:52]}  O-O {[%clk 0:02:52]} 6. Qc2 {[%clk 0:02:52]}  c5 {[%clk 0:02:48]} 7. cxd5 {[%clk 0:02:44]}  Nxd5 {[%clk 0:02:48]} 8. a3 {[%clk 0:02:43]}  Nc6 {[%clk 0:02:47]} 9. h4 {[%clk 0:02:42]}  Bf6 {[%clk 0:02:29]} 10. Ng5 {[%clk 0:02:33]}  g6 {[%clk 0:02:06]} 11. Ne4 {[%clk 0:02:26]}  Bxb2 {[%clk 0:01:38]} 12. Qxb2 {[%clk 0:02:27]}  b6 {[%clk 0:01:33]} 13. h5 {[%clk 0:02:27]}  e5 {[%clk 0:01:33]} 14. hxg6 {[%clk 0:02:24]}  fxg6 {[%clk 0:01:30]} 15. Bc4 {[%clk 0:02:22]}  Be6 {[%clk 0:01:25]} 16. Nbc3 {[%clk 0:02:11]}  Nc7 {[%clk 0:01:10]} 17. d3 {[%clk 0:02:04]}  Qe7 {[%clk 0:01:00]} 18. O-O-O {[%clk 0:01:59]}  Rab8 {[%clk 0:00:48]} 19. g4 {[%clk 0:01:47]}  b5 {[%clk 0:00:39]} 20. Bxe6+ {[%clk 0:01:46]}  Nxe6 {[%clk 0:00:36]} 21. Nd5 {[%clk 0:01:43]}  Qd8 {[%clk 0:00:27]} 22. Ndc3 {[%clk 0:01:26]}  b4 {[%clk 0:00:20]} 23. Na4 {[%clk 0:01:24]}  bxa3 {[%clk 0:00:19]} 24. Qxa3 {[%clk 0:01:23]}  Nb4 {[%clk 0:00:17]} 25. Kb1 {[%clk 0:01:23]}  Qd5 {[%clk 0:00:09]} 26. Nac3 {[%clk 0:01:20]}  Qb7 {[%clk 0:00:08]} 27. Qa4 {[%clk 0:01:11]}  Nc6 {[%clk 0:00:06]} 28. Kc2 {[%clk 0:01:00]}  Nb4+ {[%clk 0:00:06]} 29. Kb2 {[%clk 0:00:58]}  Rf7 {[%clk 0:00:03]} 30. g5 {[%clk 0:00:57]}  Kg7 {[%clk 0:00:01]} 31. Rd2 {[%clk 0:00:36]} 1-0


[Site "https://www.chess.com"]

[Event "Titled Tuesday Blitz June 6 Late 2023"]
[White "Streltsov, Alexey"]
[Black "Boder, Jan"]
[WhiteFideId "24104434"]
[BlackFideId "16243226"]
[WhiteElo "2563"]
[BlackElo "2241"]
[Result "1-0"]
[Round "1"]
[TimeControl "180+2"]
[Date "2023.06.07"]
[WhiteClock "0:00:41"]
[BlackClock "0:00:04"]
[Board "154"]

1. d4 {[%clk 0:02:57]}  Nf6 {[%clk 0:02:59]} 2. Nc3 {[%clk 0:02:52]}  d5 {[%clk 0:02:59]} 3. Bf4 {[%clk 0:02:51]}  e6 {[%clk 0:02:59]} 4. Nb5 {[%clk 0:02:51]}  Bb4+ {[%clk 0:03:00]} 5. c3 {[%clk 0:02:51]}  Ba5 {[%clk 0:03:01]} 6. e3 {[%clk 0:02:51]}  O-O {[%clk 0:03:00]} 7. Nf3 {[%clk 0:02:50]}  a6 {[%clk 0:02:52]} 8. Na3 {[%clk 0:02:50]}  c6 {[%clk 0:02:52]} 9. Bd3 {[%clk 0:02:49]}  Nbd7 {[%clk 0:02:51]} 10. Ne5 {[%clk 0:02:43]}  Bc7 {[%clk 0:02:49]} 11. Qf3 {[%clk 0:02:37]}  Nxe5 {[%clk 0:02:31]} 12. dxe5 {[%clk 0:02:38]}  Nd7 {[%clk 0:02:32]} 13. Qg3 {[%clk 0:02:37]}  g6 {[%clk 0:02:29]} 14. h4 {[%clk 0:02:36]}  f6 {[%clk 0:01:35]} 15. Bxg6 {[%clk 0:01:41]}  hxg6 {[%clk 0:01:36]} 16. Qxg6+ {[%clk 0:01:41]}  Kh8 {[%clk 0:01:36]} 17. Qh5+ {[%clk 0:01:42]}  Kg8 {[%clk 0:01:36]} 18. Qg6+ {[%clk 0:01:31]}  Kh8 {[%clk 0:01:35]} 19. Rh3 {[%clk 0:01:16]}  Qe7 {[%clk 0:01:14]} 20. exf6 {[%clk 0:01:12]}  Rxf6 {[%clk 0:01:02]} 21. Qh5+ {[%clk 0:01:10]}  Qh7 {[%clk 0:01:02]} 22. Qxh7+ {[%clk 0:01:08]}  Kxh7 {[%clk 0:01:03]} 23. Bxc7 {[%clk 0:01:09]}  e5 {[%clk 0:00:56]} 24. Nc2 {[%clk 0:01:03]}  Nc5 {[%clk 0:00:52]} 25. Ke2 {[%clk 0:01:00]}  Bxh3 {[%clk 0:00:50]} 26. gxh3 {[%clk 0:01:01]}  e4 {[%clk 0:00:49]} 27. Bf4 {[%clk 0:00:59]}  Raf8 {[%clk 0:00:45]} 28. Ne1 {[%clk 0:00:55]}  Ne6 {[%clk 0:00:43]} 29. Ng2 {[%clk 0:00:55]}  Nc5 {[%clk 0:00:37]} 30. Ne1 {[%clk 0:00:54]}  Kg6 {[%clk 0:00:32]} 31. b4 {[%clk 0:00:53]}  Ne6 {[%clk 0:00:26]} 32. Ng2 {[%clk 0:00:53]}  Kh5 {[%clk 0:00:27]} 33. Bg3 {[%clk 0:00:53]}  Rg8 {[%clk 0:00:23]} 34. Rc1 {[%clk 0:00:51]}  b5 {[%clk 0:00:22]} 35. a4 {[%clk 0:00:50]}  Rff8 {[%clk 0:00:10]} 36. Ra1 {[%clk 0:00:50]}  Ra8 {[%clk 0:00:09]} 37. Nf4+ {[%clk 0:00:49]}  Nxf4+ {[%clk 0:00:09]} 38. Bxf4 {[%clk 0:00:49]}  Kg6 {[%clk 0:00:08]} 39. a5 {[%clk 0:00:43]}  Kh5 {[%clk 0:00:08]} 40. Bg5 {[%clk 0:00:43]}  Raf8 {[%clk 0:00:09]} 41. Rg1 {[%clk 0:00:40]}  Rf3 {[%clk 0:00:08]} 42. Rg3 {[%clk 0:00:40]}  Rxg3 {[%clk 0:00:08]} 43. fxg3 {[%clk 0:00:41]}  Rf8 {[%clk 0:00:08]} 44. g4+ {[%clk 0:00:41]}  Kg6 {[%clk 0:00:08]} 45. Bf4 {[%clk 0:00:42]}  Rc8 {[%clk 0:00:08]} 46. h5+ {[%clk 0:00:43]}  Kf7 {[%clk 0:00:07]} 47. g5 {[%clk 0:00:44]}  c5 {[%clk 0:00:07]} 48. g6+ {[%clk 0:00:43]}  Kf6 {[%clk 0:00:07]} 49. Bd6 {[%clk 0:00:40]}  cxb4 {[%clk 0:00:06]} 50. cxb4 {[%clk 0:00:41]}  Rc2+ {[%clk 0:00:04]} 51. Kf1 {[%clk 0:00:41]} 1-0


[Site "https://www.chess.com"]

[Event "Titled Tuesday Blitz June 6 Late 2023"]
[White "Riff, Jean-Noel"]
[Black "KSho99"]
[WhiteFideId "611190"]
[WhiteElo "2479"]
[BlackElo "2195"]
[Result "1-0"]
[Round "1"]
[TimeControl "180+2"]
[Date "2023.06.07"]
[WhiteClock "0:01:49"]
[BlackClock "0:00:03"]
[Board "158"]

1. e4 {[%clk 0:02:58]}  c6 {[%clk 0:03:00]} 2. d4 {[%clk 0:02:57]}  d5 {[%clk 0:03:00]} 3. e5 {[%clk 0:02:57]}  Bf5 {[%clk 0:02:59]} 4. h4 {[%clk 0:02:57]}  h5 {[%clk 0:02:58]} 5. Bg5 {[%clk 0:02:56]}  Qb6 {[%clk 0:02:57]} 6. Bd3 {[%clk 0:02:34]}  Bxd3 {[%clk 0:02:54]} 7. Qxd3 {[%clk 0:02:34]}  e6 {[%clk 0:02:41]} 8. Nd2 {[%clk 0:02:28]}  Nh6 {[%clk 0:02:34]} 9. c4 {[%clk 0:02:26]}  Nf5 {[%clk 0:02:30]} 10. Ngf3 {[%clk 0:02:23]}  Nd7 {[%clk 0:01:49]} 11. O-O {[%clk 0:02:21]}  Qa6 {[%clk 0:01:35]} 12. b3 {[%clk 0:02:20]}  Ba3 {[%clk 0:01:18]} 13. Rfd1 {[%clk 0:02:07]}  O-O {[%clk 0:01:16]} 14. Nf1 {[%clk 0:02:06]}  Rac8 {[%clk 0:00:42]} 15. Ne3 {[%clk 0:02:05]}  Nxe3 {[%clk 0:00:35]} 16. Qxe3 {[%clk 0:02:06]}  Rfe8 {[%clk 0:00:27]} 17. c5 {[%clk 0:02:04]}  b6 {[%clk 0:00:25]} 18. Bf6 {[%clk 0:02:03]}  Nxf6 {[%clk 0:00:12]} 19. exf6 {[%clk 0:02:02]}  gxf6 {[%clk 0:00:13]} 20. Qh6 {[%clk 0:02:02]}  bxc5 {[%clk 0:00:12]} 21. Qxf6 {[%clk 0:02:01]}  cxd4 {[%clk 0:00:07]} 22. Qg5+ {[%clk 0:01:58]}  Kf8 {[%clk 0:00:05]} 23. Ne5 {[%clk 0:01:49]}  c5 {[%clk 0:00:03]} 24. Nd7# {[%clk 0:01:49]} 1-0


[Site "https://www.chess.com"]

[Event "Titled Tuesday Blitz June 6 Late 2023"]
[White "Arias Igual, Alejandro"]
[Black "Zarnicki, Pablo"]
[WhiteFideId "2254905"]
[BlackFideId "100137"]
[WhiteElo "2179"]
[BlackElo "2468"]
[Result "0-1"]
[Round "1"]
[TimeControl "180+2"]
[Date "2023.06.07"]
[WhiteClock "0:00:32"]
[BlackClock "0:01:49"]
[Board "159"]

1. e4 {[%clk 0:02:55]}  e6 {[%clk 0:02:57]} 2. d4 {[%clk 0:02:55]}  d5 {[%clk 0:02:57]} 3. Bd3 {[%clk 0:02:55]}  Nc6 {[%clk 0:02:55]} 4. Nf3 {[%clk 0:02:54]}  Nb4 {[%clk 0:02:55]} 5. O-O {[%clk 0:02:34]}  Nxd3 {[%clk 0:02:52]} 6. Qxd3 {[%clk 0:02:32]}  Nf6 {[%clk 0:02:51]} 7. Nc3 {[%clk 0:02:29]}  Be7 {[%clk 0:02:48]} 8. Bg5 {[%clk 0:02:24]}  O-O {[%clk 0:02:38]} 9. e5 {[%clk 0:02:19]}  Nd7 {[%clk 0:02:36]} 10. Bxe7 {[%clk 0:02:20]}  Qxe7 {[%clk 0:02:36]} 11. Ne2 {[%clk 0:02:20]}  c5 {[%clk 0:02:35]} 12. c3 {[%clk 0:02:20]}  a5 {[%clk 0:02:35]} 13. Rfe1 {[%clk 0:02:16]}  b6 {[%clk 0:02:34]} 14. Ng3 {[%clk 0:02:13]}  Ba6 {[%clk 0:02:34]} 15. Qd2 {[%clk 0:02:12]}  Rac8 {[%clk 0:02:32]} 16. a3 {[%clk 0:02:09]}  Rc7 {[%clk 0:02:28]} 17. h4 {[%clk 0:02:09]}  Rfc8 {[%clk 0:02:27]} 18. h5 {[%clk 0:02:07]}  cxd4 {[%clk 0:02:26]} 19. Nxd4 {[%clk 0:01:52]}  Nc5 {[%clk 0:02:24]} 20. h6 {[%clk 0:01:49]}  g6 {[%clk 0:02:24]} 21. Re3 {[%clk 0:01:42]}  Qg5 {[%clk 0:02:21]} 22. Re2 {[%clk 0:01:33]}  Qxd2 {[%clk 0:02:21]} 23. Rxd2 {[%clk 0:01:34]}  Nd3 {[%clk 0:02:20]} 24. Nf3 {[%clk 0:01:24]}  Bc4 {[%clk 0:02:14]} 25. Nf1 {[%clk 0:01:21]}  Nc5 {[%clk 0:02:12]} 26. Re1 {[%clk 0:01:14]}  Bxf1 {[%clk 0:01:56]} 27. Kxf1 {[%clk 0:01:14]}  Nb3 {[%clk 0:01:56]} 28. Rdd1 {[%clk 0:01:11]}  b5 {[%clk 0:01:56]} 29. Nd4 {[%clk 0:01:10]}  Nxd4 {[%clk 0:01:57]} 30. Rxd4 {[%clk 0:01:11]}  Rc4 {[%clk 0:01:57]} 31. Red1 {[%clk 0:01:10]}  Kf8 {[%clk 0:01:57]} 32. Ke2 {[%clk 0:01:09]}  Ke7 {[%clk 0:01:57]} 33. Ke3 {[%clk 0:01:09]}  f6 {[%clk 0:01:54]} 34. f4 {[%clk 0:01:05]}  fxe5 {[%clk 0:01:55]} 35. fxe5 {[%clk 0:01:05]}  Rf8 {[%clk 0:01:55]} 36. Rxc4 {[%clk 0:01:02]}  bxc4 {[%clk 0:01:55]} 37. g4 {[%clk 0:00:58]}  g5 {[%clk 0:01:53]} 38. Rh1 {[%clk 0:00:52]}  Rf4 {[%clk 0:01:52]} 39. Rh5 {[%clk 0:00:31]}  Rxg4 {[%clk 0:01:51]} 40. Kf3 {[%clk 0:00:31]}  Rf4+ {[%clk 0:01:50]} 41. Kg3 {[%clk 0:00:32]}  Rf5 {[%clk 0:01:49]} 0-1


[Site "https://www.chess.com"]

[Event "Titled Tuesday Blitz June 6 Late 2023"]
[White "Roberson, Peter T"]
[Black "Marin Masis, Jose Esteban"]
[WhiteFideId "412384"]
[BlackFideId "6508146"]
[WhiteElo "2346"]
[BlackElo "1838"]
[Result "1-0"]
[Round "1"]
[TimeControl "180+2"]
[Date "2023.06.07"]
[WhiteClock "0:00:41"]
[BlackClock "0:00:17"]
[Board "162"]

1. e4 {[%clk 0:02:59]}  c5 {[%clk 0:02:57]} 2. d3 {[%clk 0:02:57]}  d5 {[%clk 0:02:57]} 3. Nd2 {[%clk 0:02:51]}  Nc6 {[%clk 0:02:54]} 4. f4 {[%clk 0:02:51]}  dxe4 {[%clk 0:02:41]} 5. dxe4 {[%clk 0:02:50]}  e5 {[%clk 0:02:41]} 6. Ngf3 {[%clk 0:02:39]}  exf4 {[%clk 0:02:36]} 7. Bc4 {[%clk 0:02:40]}  Bd6 {[%clk 0:02:21]} 8. O-O {[%clk 0:02:38]}  Nf6 {[%clk 0:02:17]} 9. e5 {[%clk 0:02:33]}  Nxe5 {[%clk 0:02:01]} 10. Re1 {[%clk 0:02:32]}  Nd7 {[%clk 0:01:53]} 11. Ne4 {[%clk 0:02:25]}  Bc7 {[%clk 0:01:33]} 12. Nd6+ {[%clk 0:02:19]}  Bxd6 {[%clk 0:01:15]} 13. Qxd6 {[%clk 0:02:20]}  f6 {[%clk 0:01:12]} 14. Bxf4 {[%clk 0:02:11]}  Qe7 {[%clk 0:01:11]} 15. Nxe5 {[%clk 0:01:38]}  fxe5 {[%clk 0:00:49]} 16. Bxe5 {[%clk 0:01:14]}  Qxd6 {[%clk 0:00:43]} 17. Bxd6+ {[%clk 0:01:15]}  Kd8 {[%clk 0:00:42]} 18. Rad1 {[%clk 0:01:04]}  Re8 {[%clk 0:00:17]} 19. Rxe8+ {[%clk 0:00:55]}  Kxe8 {[%clk 0:00:18]} 20. Re1+ {[%clk 0:00:50]}  Kd8 {[%clk 0:00:18]} 21. Re7 {[%clk 0:00:51]}  Nb6 {[%clk 0:00:18]} 22. Bb5 {[%clk 0:00:41]}  Bf5 {[%clk 0:00:17]} 1-0


[Site "https://www.chess.com"]

[Event "Titled Tuesday Blitz June 6 Late 2023"]
[White "Spata, German"]
[Black "Djordjevic, Dejan N"]
[WhiteFideId "113026"]
[BlackFideId "913316"]
[WhiteElo "2260"]
[BlackElo "2261"]
[Result "1-0"]
[Round "1"]
[TimeControl "180+2"]
[Date "2023.06.07"]
[WhiteClock "0:00:09"]
[BlackClock "0:00:01"]
[Board "164"]

1. Nc3 {[%clk 0:03:00]}  c5 {[%clk 0:02:57]} 2. Nf3 {[%clk 0:02:59]}  Nc6 {[%clk 0:02:56]} 3. d4 {[%clk 0:02:54]}  cxd4 {[%clk 0:02:56]} 4. Nxd4 {[%clk 0:02:54]}  Nf6 {[%clk 0:02:56]} 5. Bg5 {[%clk 0:02:53]}  a6 {[%clk 0:02:52]} 6. e4 {[%clk 0:02:49]}  d6 {[%clk 0:02:50]} 7. Qd3 {[%clk 0:02:42]}  Qb6 {[%clk 0:02:36]} 8. O-O-O {[%clk 0:02:34]}  Ne5 {[%clk 0:02:08]} 9. Qg3 {[%clk 0:02:26]}  Bd7 {[%clk 0:01:59]} 10. f4 {[%clk 0:02:22]}  Nc6 {[%clk 0:01:49]} 11. Bxf6 {[%clk 0:02:14]}  gxf6 {[%clk 0:01:48]} 12. Nd5 {[%clk 0:02:12]}  Qa5 {[%clk 0:01:47]} 13. Kb1 {[%clk 0:01:46]}  Rc8 {[%clk 0:01:42]} 14. Nb3 {[%clk 0:01:42]}  Qd8 {[%clk 0:01:31]} 15. Bd3 {[%clk 0:01:32]}  b5 {[%clk 0:01:30]} 16. Rhe1 {[%clk 0:01:28]}  h5 {[%clk 0:01:25]} 17. Qf2 {[%clk 0:01:12]}  Rb8 {[%clk 0:01:19]} 18. Nd4 {[%clk 0:01:07]}  h4 {[%clk 0:01:04]} 19. g3 {[%clk 0:00:46]}  hxg3 {[%clk 0:01:03]} 20. hxg3 {[%clk 0:00:47]}  e6 {[%clk 0:00:44]} 21. Nxc6 {[%clk 0:00:26]}  Bxc6 {[%clk 0:00:44]} 22. f5 {[%clk 0:00:23]}  Bxd5 {[%clk 0:00:37]} 23. exd5 {[%clk 0:00:23]}  e5 {[%clk 0:00:37]} 24. Rh1 {[%clk 0:00:21]}  Rg8 {[%clk 0:00:36]} 25. Rh7 {[%clk 0:00:20]}  Qc7 {[%clk 0:00:34]} 26. Be2 {[%clk 0:00:19]}  Rg7 {[%clk 0:00:26]} 27. Rxg7 {[%clk 0:00:19]}  Bxg7 {[%clk 0:00:26]} 28. Qf3 {[%clk 0:00:17]}  Bh6 {[%clk 0:00:19]} 29. Qh5 {[%clk 0:00:16]}  Be3 {[%clk 0:00:17]} 30. Qh7 {[%clk 0:00:11]}  Ke7 {[%clk 0:00:17]} 31. Bh5 {[%clk 0:00:10]}  Rf8 {[%clk 0:00:12]} 32. Be2 {[%clk 0:00:10]}  Qc5 {[%clk 0:00:11]} 33. Qh1 {[%clk 0:00:09]}  Rg8 {[%clk 0:00:10]} 34. g4 {[%clk 0:00:09]}  a5 {[%clk 0:00:08]} 35. Qe4 {[%clk 0:00:08]}  a4 {[%clk 0:00:07]} 36. a3 {[%clk 0:00:08]}  Bd4 {[%clk 0:00:06]} 37. Qd3 {[%clk 0:00:07]}  b4 {[%clk 0:00:05]} 38. axb4 {[%clk 0:00:07]}  Qxb4 {[%clk 0:00:05]} 39. c3 {[%clk 0:00:08]}  Bxc3 {[%clk 0:00:01]} 40. Qxc3 {[%clk 0:00:09]} 1-0


[Site "https://www.chess.com"]